{"text_format":"1","workbook":"xlsx","n_sheets":2,"sheets":["2017","Sayfa3"],"not_rendered":{"charts":0,"images":0,"macros":1,"external_links":0,"defined_names":0,"comments":0,"pivot_tables":0},"unopened":[],"bounds":{"document_bytes":16777216,"sheet_cells":100000,"rows_first":2000,"rows_last":500,"rows_between":2000,"halvings":0,"cell_chars":16384,"cell_head_chars":4096},"cells_cut":0,"cells_raw":0,"read":"whole","date_system":"1900"}

{"sheet":"2017","index":0,"n_rows":14,"n_cols":28,"rows_kept":14,"cut":false,"hidden":false,"merged":[[1,24,1,25],[1,26,2,26],[1,1,2,1],[1,0,2,0],[1,27,2,27],[1,12,1,13],[1,14,1,15],[1,16,1,17],[1,18,1,19],[1,20,1,21],[1,22,1,23],[1,2,1,3],[1,4,1,5],[1,6,1,7],[1,8,1,9],[1,10,1,11]]}
["RAPORLU ÖĞRETMENLER GÜN SAYISI"]
["SN","PERSONEL                                               ADI SOYADI","OCAK",null,"ŞUBAT",null,"MART",null,"NİSAN",null,"MAYIS",null,"HAZİRAN",null,"TEMMUZ",null,"AĞUSTOS",null,"EYLÜL",null,"EKİM",null,"KASIM",null,"ARALIK",null,"TOPLAM RAPORLU GÜN","KESİNTİ DURUMU"]
[null,null,"RAPOR GÜN","KESİNTİ GÜN","RAPOR GÜN","KESİNTİ GÜN","RAPOR GÜN","KESİNTİ GÜN","RAPOR GÜN","KESİNTİ GÜN","RAPOR GÜN","KESİNTİ GÜN","RAPOR GÜN","KESİNTİ GÜN","RAPOR GÜN","KESİNTİ GÜN","RAPOR GÜN","KESİNTİ GÜN","RAPOR GÜN","KESİNTİ GÜN","RAPOR GÜN","KESİNTİ GÜN","RAPOR GÜN","KESİNTİ GÜN","RAPOR GÜN","KESİNTİ GÜN"]
[1,"İhsan HOMAN",9,2,6,6,5,5,1,1,null,null,2,null,null,null,null,null,null,null,null,null,null,null,null,null,{"$f":"(C4+E4+G4+I4+K4+M4+O4+Q4+S4+U4+W4+Y4)-(D4+F4+H4+J4+L4+N4+P4+R4+T4+V4+X4+Z4)","v":9},{"$f":"IF(AA4>7,(AA4-7) &\" GÜN KESİNTİ YAPILACAK\",\"HENÜZ KESİNTİ YAPILMAYACAK\")","v":"2 GÜN KESİNTİ YAPILACAK"}]
[{"$f":"A4+1","v":2},"İhsan HOMAN",null,null,null,null,null,null,null,null,null,null,null,null,null,null,null,null,null,null,null,null,null,null,null,null,{"$f":"(C5+E5+G5+I5+K5+M5+O5+Q5+S5+U5+W5+Y5)-(D5+F5+H5+J5+L5+N5+P5+R5+T5+V5+X5+Z5)","v":0},{"$f":"IF(AA5>7,(AA5-7) &\" GÜN KESİNTİ YAPILACAK\",\"HENÜZ KESİNTİ YAPILMAYACAK\")","v":"HENÜZ KESİNTİ YAPILMAYACAK"}]
[{"$f":"A5+1","v":3},"İhsan HOMAN",null,null,null,null,null,null,null,null,null,null,null,null,null,null,null,null,null,null,null,null,null,null,null,null,0,"HENÜZ KESİNTİ YAPILMAYACAK"]
[4,"İhsan HOMAN",null,null,null,null,null,null,null,null,null,null,null,null,null,null,null,null,null,null,null,null,null,null,null,null,0,"HENÜZ KESİNTİ YAPILMAYACAK"]
[{"$f":"A7+1","v":5},"İhsan HOMAN",null,null,null,null,null,null,null,null,null,null,null,null,null,null,null,null,null,null,null,null,null,null,null,null,{"$f":"(C8+E8+G8+I8+K8+M8+O8+Q8+S8+U8+W8+Y8)-(D8+F8+H8+J8+L8+N8+P8+R8+T8+V8+X8+Z8)","v":0},{"$f":"IF(AA8>7,(AA8-7) &\" GÜN KESİNTİ YAPILACAK\",\"HENÜZ KESİNTİ YAPILMAYACAK\")","v":"HENÜZ KESİNTİ YAPILMAYACAK"}]
[{"$f":"A8+1","v":6},"İhsan HOMAN",null,null,null,null,null,null,null,null,null,null,null,null,null,null,null,null,null,null,null,null,null,null,null,null,{"$f":"(C9+E9+G9+I9+K9+M9+O9+Q9+S9+U9+W9+Y9)-(D9+F9+H9+J9+L9+N9+P9+R9+T9+V9+X9+Z9)","v":0},{"$f":"IF(AA9>7,(AA9-7) &\" GÜN KESİNTİ YAPILACAK\",\"HENÜZ KESİNTİ YAPILMAYACAK\")","v":"HENÜZ KESİNTİ YAPILMAYACAK"}]
[7,"İhsan HOMAN",null,null,null,null,null,null,null,null,null,null,null,null,null,null,null,null,null,null,null,null,null,null,null,null,{"$f":"(C10+E10+G10+I10+K10+M10+O10+Q10+S10+U10+W10+Y10)-(D10+F10+H10+J10+L10+N10+P10+R10+T10+V10+X10+Z10)","v":0},{"$f":"IF(AA10>7,(AA10-7) &\" GÜN KESİNTİ YAPILACAK\",\"HENÜZ KESİNTİ YAPILMAYACAK\")","v":"HENÜZ KESİNTİ YAPILMAYACAK"}]
[8,"İhsan HOMAN",null,null,null,null,null,null,null,null,null,null,null,null,null,null,null,null,null,null,null,null,null,null,null,null,{"$f":"(C11+E11+G11+I11+K11+M11+O11+Q11+S11+U11+W11+Y11)-(D11+F11+H11+J11+L11+N11+P11+R11+T11+V11+X11+Z11)","v":0},{"$f":"IF(AA11>7,(AA11-7) &\" GÜN KESİNTİ YAPILACAK\",\"HENÜZ KESİNTİ YAPILMAYACAK\")","v":"HENÜZ KESİNTİ YAPILMAYACAK"}]
[9,"İhsan HOMAN",null,null,null,null,null,null,null,null,null,null,null,null,null,null,null,null,null,null,null,null,null,null,null,null,{"$f":"(C12+E12+G12+I12+K12+M12+O12+Q12+S12+U12+W12+Y12)-(D12+F12+H12+J12+L12+N12+P12+R12+T12+V12+X12+Z12)","v":0},{"$f":"IF(AA12>7,(AA12-7) &\" GÜN KESİNTİ YAPILACAK\",\"HENÜZ KESİNTİ YAPILMAYACAK\")","v":"HENÜZ KESİNTİ YAPILMAYACAK"}]
[10,"İhsan HOMAN",null,null,null,null,null,null,null,null,null,null,null,null,null,null,null,null,null,null,null,null,null,null,null,null,{"$f":"(C13+E13+G13+I13+K13+M13+O13+Q13+S13+U13+W13+Y13)-(D13+F13+H13+J13+L13+N13+P13+R13+T13+V13+X13+Z13)","v":0},{"$f":"IF(AA13>7,(AA13-7) &\" GÜN KESİNTİ YAPILACAK\",\"HENÜZ KESİNTİ YAPILMAYACAK\")","v":"HENÜZ KESİNTİ YAPILMAYACAK"}]
[11,"İhsan HOMAN",null,null,null,null,null,null,null,null,null,null,null,null,null,null,null,null,null,null,null,null,null,null,null,null,0,"HENÜZ KESİNTİ YAPILMAYACAK"]

{"sheet":"Sayfa3","index":1,"n_rows":0,"n_cols":0,"rows_kept":0,"cut":false,"hidden":false,"merged":[]}